fUST/lending_fUST_20260209
["ID","MTS","AMOUNT","RATE_DAILY","PERIOD"]
[404886417,1770649848271,-181.08010149,0.00049314,120]
[404886418,1770649848280,-579.2426033,0.00049314,120]
[404886419,1770649848290,-510.8683181,0.00049315,120]
[404886420,1770649848299,-500.0,0.00049315,120]
[404886421,1770649848309,-525.49430373,0.00049315,120]
[404886422,1770649848318,-500.0,0.00049315,120]
[404886423,1770649848327,-500.0,0.00049315,120]
[404886424,1770649848336,-154.00855849,0.00049315,120]
[404886425,1770649848345,-10108.66,0.00049315,30]
[404886426,1770649848354,-500.0,0.00049315,120]
[404886427,1770649848364,-500.0,0.00049315,120]
[404886428,1770649848374,-508.89299509,0.00049315,120]
[404886429,1770649848384,-500.0,0.00049315,120]
[404886430,1770649848394,-500.0,0.00049315,120]
[404886431,1770649848403,-524.15748358,0.00049315,120]
[404886432,1770649848413,-500.0,0.00049315,120]
[404886433,1770649848423,-500.0,0.00049315,120]
[404886434,1770649848433,-500.0,0.00049315,120]
[404886435,1770649848443,-500.0,0.00049315,120]
[404886436,1770649848454,-527.36,0.00049315,120]
[404886437,1770649848463,-500.0,0.00049315,120]
[404886438,1770649848475,-500.0,0.00049315,120]
[404886439,1770649848485,-339.08146802,0.00049315,120]
[404886440,1770649848495,-500.0,0.00049315,120]
[404886441,1770649848505,-500.0,0.00049315,120]
[404886442,1770649848515,-500.0,0.00049315,120]
[404886443,1770649848525,-500.0,0.00049315,120]
[404886444,1770649848535,-500.0,0.00049315,120]
[404886445,1770649848544,-500.0,0.00049315,120]
[404886446,1770649848554,-500.0,0.00049315,120]
[404886447,1770649848564,-500.0,0.00049315,120]
[404886448,1770649848573,-500.0,0.00049315,120]
[404886449,1770649848583,-500.0,0.00049315,120]
[404886450,1770649848592,-449.35953323,0.00049315,120]
[404886451,1770649848602,-500.0,0.00049315,120]
[404886452,1770649848612,-500.0,0.00049315,120]
[404886453,1770649848622,-500.0,0.00049315,30]
[404886454,1770649848639,-211.65435497,0.00049315,120]
[404886455,1770649848659,-500.0,0.00049315,120]
[404886456,1770649848678,-710.88,0.00049315,30]
[404886457,1770649848688,-500.0,0.00049315,120]
[404886458,1770649848700,-500.0,0.00049315,120]
[404886459,1770649848713,-500.0,0.00049315,120]
[404886460,1770649848723,-500.0,0.00049315,120]
[404886461,1770649848732,-453.74336283,0.00049315,120]
[404886462,1770649848742,-500.0,0.00049315,120]
[404886463,1770649848752,-500.0,0.00049315,120]
[404886464,1770649848762,-500.0,0.00049315,120]
[404886465,1770649848771,-500.0,0.00049315,120]
[404886466,1770649848780,-500.0,0.00049315,53]
[404886467,1770649848789,-500.0,0.00049315,120]
[404886468,1770649848799,-500.0,0.00049315,120]
[404886469,1770649848808,-500.0,0.00049315,120]
[404886470,1770649848917,-594.8,0.00049315,120]
[404886471,1770649848929,-500.0,0.00049315,120]
[404886472,1770649848939,-500.0,0.00049315,120]
[404886473,1770649848948,-500.0,0.00049315,120]
[404886474,1770649848958,-500.0,0.00049315,120]
[404886475,1770649848967,-500.0,0.00049315,120]
[404886476,1770649848977,-500.0,0.00049315,2]
[404886477,1770649848987,-192.41388136,0.00049315,120]
[404886478,1770649848996,-67827.48,0.00049315,20]
[404886479,1770649849005,-500.0,0.00049315,120]
[404886480,1770649849015,-500.0,0.00049315,120]
[404886481,1770649849024,-609.92,0.00049315,120]
[404886482,1770649849034,-500.0,0.00049315,2]
[404886483,1770649849043,-618.93146548,0.00049315,120]
[404886484,1770649849053,-500.0,0.00049315,120]
[404886485,1770649849063,-267.84119595,0.00049315,120]
[404886486,1770649849072,-4736.26,0.00049315,21]
[404886487,1770649849082,-50000.0,0.000495,120]
[404886488,1770649849091,-151.0,0.00049589,30]
[404886489,1770649849101,-500.0,0.00049589,120]
[404886490,1770649849111,-192.19018526,0.00049589,120]
[404886491,1770649849120,-500.0,0.00049589,120]
[404886492,1770649849130,-500.0,0.00049589,120]
[404886493,1770649849140,-500.0,0.00049589,120]
[404886494,1770649849149,-500.0,0.00049589,120]
[404886495,1770649849159,-797.77,0.00049589,120]
[404886496,1770649849168,-500.0,0.00049589,120]
[404886497,1770649849178,-500.0,0.00049589,120]
[404886498,1770649849187,-566.04121699,0.00049589,120]
[404886499,1770649849197,-500.0,0.00049589,120]
[404886500,1770649849207,-500.0,0.00049589,2]
[404886501,1770649849216,-500.0,0.00049589,120]
[404886502,1770649849225,-500.0,0.00049589,120]
[404886503,1770649849234,-500.0,0.00049589,120]
[404886504,1770649849244,-500.0,0.00049589,120]
[404886505,1770649849253,-397.15233602,0.00049589,120]
[404886506,1770649849262,-492.78564385,0.00049589,120]
[404886507,1770649849272,-500.0,0.00049589,120]
[404886508,1770649849282,-500.0,0.00049589,14]
[404886509,1770649849291,-500.0,0.00049589,120]
[404886510,1770649849301,-2499.97,0.00049589,2]
[404886511,1770649849311,-546.05,0.00049589,120]
[404886512,1770649849321,-367.89950786,0.00049589,120]
[404886513,1770649849330,-150.86238066,0.00049589,120]
[404886514,1770649849339,-483.82262239,0.00049589,120]
[404886515,1770649849349,-358.03403778,0.00049589,120]
[404886516,1770649849359,-500.0,0.00049589,120]
[404886517,1770649849368,-583.62690949,0.00049589,120]
[404886518,1770649849377,-500.0,0.00049589,120]
[404886519,1770649849389,-500.0,0.00049589,120]
[404886520,1770649849400,-802.85,0.00049589,120]
[404886521,1770649849409,-500.0,0.00049589,120]
[404886522,1770649849418,-500.0,0.00049589,120]
[404886523,1770649849428,-500.0,0.00049589,120]
[404886524,1770649849437,-500.0,0.00049589,120]
[404886525,1770649849447,-240.5219291,0.00049589,120]
[404886526,1770649849457,-500.0,0.00049589,120]
[404886527,1770649849467,-500.0,0.00049589,120]
[404886528,1770649849477,-859.94,0.00049589,120]
[404886529,1770649849487,-500.0,0.00049589,7]
[404886530,1770649849496,-282.69142968,0.00049589,120]
[404886531,1770649849505,-603.22774676,0.00049589,120]
[404886532,1770649849514,-500.0,0.00049589,120]
[404886533,1770649849523,-500.0,0.00049589,120]
[404886534,1770649849533,-500.0,0.00049589,120]
[404886535,1770649849543,-500.0,0.00049589,8]
[404886536,1770649849560,-614.65562207,0.00049589,120]
[404886537,1770649849578,-880.16,0.00049589,120]
[404886538,1770649849587,-500.0,0.00049589,120]
[404886539,1770649849596,-500.0,0.00049589,120]
[404886540,1770649849606,-161.29401388,0.00049589,120]
[404886541,1770649849616,-514.91821417,0.00049589,120]
[404886542,1770649849628,-4901.28,0.00049589,2]
[404886543,1770649849640,-163.17516513,0.00049589,120]
[404886544,1770649849649,-500.0,0.00049589,120]
[404886545,1770649849659,-175.89919587,0.00049589,120]
[404886546,1770649849670,-500.0,0.00049589,120]
[404886547,1770649849679,-500.0,0.00049589,120]
[404886548,1770649849689,-320.57294433,0.00049589,120]
[404886549,1770649849699,-174.3566064,0.00049589,120]
[404886550,1770649849709,-500.0,0.00049589,120]
[404886551,1770649849719,-10108.66,0.00049589,30]
[404886552,1770649849728,-500.0,0.00049589,120]
[404886553,1770649849737,-500.0,0.00049589,120]
[404886554,1770649849746,-500.0,0.00049589,120]
[404886555,1770649849756,-500.0,0.00049589,120]
[404886556,1770649849765,-500.0,0.00049589,120]
[404886557,1770649849775,-500.0,0.00049589,120]
[404886558,1770649849785,-500.0,0.00049589,120]
[404886559,1770649849794,-500.0,0.00049589,120]
[404886560,1770649849803,-527.36,0.00049589,120]
[404886561,1770649849812,-500.0,0.00049589,120]
[404886562,1770649849822,-500.0,0.00049589,120]
[404886563,1770649849832,-500.0,0.00049589,120]
[404886564,1770649849842,-500.0,0.00049589,120]
[404886565,1770649849851,-500.0,0.00049589,120]
[404886566,1770649849860,-500.0,0.00049589,120]
[404886567,1770649849871,-500.0,0.00049589,120]
[404886568,1770649849880,-500.0,0.00049589,120]
[404886569,1770649849891,-500.0,0.00049589,120]
[404886570,1770649849900,-383.27446169,0.00049589,120]
[404886571,1770649849910,-500.0,0.00049589,120]
[404886572,1770649849920,-500.0,0.00049589,120]
[404886573,1770649849929,-500.0,0.00049589,120]
[404886574,1770649849939,-500.0,0.00049589,120]
[404886575,1770649849948,-500.0,0.00049589,30]
[404886576,1770649849957,-153.96705775,0.00049589,120]
[404886577,1770649849966,-710.88,0.00049589,30]
[404886578,1770649849976,-269.32906988,0.00049589,120]
[404886579,1770649849985,-500.0,0.00049589,120]
[404886580,1770649849994,-500.0,0.00049589,120]
[404886581,1770649850003,-500.0,0.00049589,120]
[404886582,1770649850013,-500.0,0.00049589,120]
[404886583,1770649850022,-500.0,0.00049589,120]
[404886584,1770649850031,-500.0,0.00049589,120]
[404886585,1770649850041,-500.0,0.00049589,120]
[404886586,1770649850050,-500.0,0.00049589,53]
[404886587,1770649850059,-500.0,0.00049589,120]
[404886588,1770649850069,-500.0,0.00049589,120]
[404886589,1770649850078,-500.0,0.00049589,120]
[404886590,1770649850088,-594.8,0.00049589,120]
[404886591,1770649850097,-500.0,0.00049589,120]
[404886592,1770649850106,-643.29303456,0.00049589,120]
[404886593,1770649850115,-500.0,0.00049589,120]
[404886594,1770649850124,-170.37942831,0.00049589,120]
[404886595,1770649850135,-500.0,0.00049589,120]
[404886596,1770649850145,-500.0,0.00049589,2]
[404886597,1770649850154,-67827.48,0.00049589,20]
[404886598,1770649850163,-500.0,0.00049589,120]
[404886599,1770649850173,-500.0,0.00049589,120]
[404886600,1770649850182,-609.92,0.00049589,120]
[404886601,1770649850191,-500.0,0.00049589,2]
[404886602,1770649850200,-500.0,0.00049589,120]
[404886603,1770649850210,-1081.49231105,0.000496,120]
[404886604,1770649850220,-515.56,0.00049695,120]
[404886605,1770649850229,-1629.25,0.00049809,13]
[404886606,1770649850240,-864.0,0.00049838,120]
[404886607,1770649850249,-151.0,0.00049863,30]
[404886608,1770649850259,-585.77882724,0.00049863,120]
[404886609,1770649850269,-500.0,0.00049863,120]
[404886610,1770649850278,-500.0,0.00049863,120]
[404886611,1770649850287,-500.0,0.00049863,120]
[404886612,1770649850296,-584.13171778,0.00049863,120]
[404886613,1770649850306,-797.77,0.00049863,120]
[404886614,1770649850315,-510.09745148,0.00049863,120]
[404886615,1770649850324,-500.0,0.00049863,120]
[404886616,1770649850334,-500.0,0.00049863,120]
[404886617,1770649850344,-500.0,0.00049863,2]
[404886618,1770649850354,-572.84212737,0.00049863,120]
[404886619,1770649850363,-500.0,0.00049863,120]
[404886620,1770649850373,-500.0,0.00049863,120]
[404886621,1770649850383,-500.0,0.00049863,120]
[404886622,1770649850392,-500.0,0.00049863,120]
[404886623,1770649850402,-500.0,0.00049863,14]
[404886624,1770649850412,-275.70057319,0.00049863,120]
[404886625,1770649850421,-2499.97,0.00049863,2]
[404886626,1770649850431,-546.05,0.00049863,120]
[404886627,1770649850440,-500.0,0.00049863,120]
[404886628,1770649850449,-500.0,0.00049863,120]
[404886629,1770649850459,-500.0,0.00049863,120]
[404886630,1770649850469,-802.85,0.00049863,120]
[404886631,1770649850479,-500.0,0.00049863,120]
[404886632,1770649850488,-500.0,0.00049863,120]
[404886633,1770649850497,-356.66241668,0.00049863,120]
[404886634,1770649850507,-518.5960973,0.00049863,120]
[404886635,1770649850516,-352.25557683,0.00049863,120]
[404886636,1770649850525,-500.0,0.00049863,120]
[404886637,1770649850534,-859.94,0.00049863,120]
[404886638,1770649850544,-500.0,0.00049863,7]
[404886639,1770649850553,-500.0,0.00049863,120]
[404886640,1770649850562,-500.0,0.00049863,120]
[404886641,1770649850571,-500.0,0.00049863,120]
[404886642,1770649850580,-500.0,0.00049863,8]
[404886643,1770649850589,-880.16,0.00049863,120]
[404886644,1770649850599,-500.0,0.00049863,120]
[404886645,1770649850609,-500.0,0.00049863,120]
[404886646,1770649850620,-4901.28,0.00049863,2]
[404886647,1770649850630,-500.0,0.00049863,120]
[404886648,1770649850641,-500.0,0.00049863,120]
[404886649,1770649850651,-639.66399164,0.00049863,120]
[404886650,1770649850660,-500.0,0.00049863,120]
[404886651,1770649850670,-10108.66,0.00049863,30]
[404886652,1770649850680,-237.36179612,0.00049863,120]
[404886653,1770649850690,-492.75005278,0.00049863,120]
[404886654,1770649850699,-500.0,0.00049863,120]
[404886655,1770649850716,-500.0,0.00049863,120]
[404886656,1770649850725,-500.0,0.00049863,120]
[404886657,1770649850734,-500.0,0.00049863,120]
[404886658,1770649850743,-500.0,0.00049863,120]
[404886659,1770649850753,-500.0,0.00049863,120]
[404886660,1770649850763,-527.36,0.00049863,120]
[404886661,1770649850772,-500.0,0.00049863,120]
[404886662,1770649850781,-500.0,0.00049863,120]
[404886663,1770649850791,-500.0,0.00049863,120]
[404886664,1770649850801,-238.2841891,0.00049863,120]
[404886665,1770649850810,-500.0,0.00049863,120]
[404886666,1770649850819,-500.0,0.00049863,120]
[404886667,1770649850829,-500.0,0.00049863,120]
[404886668,1770649850838,-500.0,0.00049863,120]
[404886669,1770649850847,-500.0,0.00049863,120]
[404886670,1770649850856,-500.0,0.00049863,120]
[404886671,1770649850866,-500.0,0.00049863,120]
[404886672,1770649850875,-500.0,0.00049863,120]
[404886673,1770649850887,-500.0,0.00049863,120]
[404886674,1770649850896,-500.0,0.00049863,30]
[404886675,1770649850906,-710.88,0.00049863,30]
[404886676,1770649850915,-500.0,0.00049863,120]
[404886677,1770649850924,-500.0,0.00049863,120]
[404886678,1770649850933,-212.8759299,0.00049863,120]
[404886679,1770649850943,-500.0,0.00049863,120]
[404886680,1770649850952,-500.0,0.00049863,120]
[404886681,1770649850962,-500.0,0.00049863,120]
[404886682,1770649850971,-500.0,0.00049863,120]
[404886683,1770649850981,-500.0,0.00049863,53]
[404886684,1770649850990,-500.0,0.00049863,120]
[404886685,1770649850999,-500.0,0.00049863,120]
[404886686,1770649851008,-500.0,0.00049863,120]
[404886687,1770649851016,-594.8,0.00049863,120]
[404886688,1770649851025,-500.0,0.00049863,120]
[404886689,1770649851034,-500.0,0.00049863,120]
[404886690,1770649851043,-558.0946176,0.00049863,120]
[404886691,1770649851052,-500.0,0.00049863,2]
[404886692,1770649851062,-67827.48,0.00049863,20]
[404886693,1770649851071,-406.02548016,0.00049863,120]
[404886694,1770649851080,-500.0,0.00049863,120]
[404886695,1770649851090,-609.92,0.00049863,120]
[404886696,1770649851100,-500.0,0.00049863,2]
[404886697,1770649851109,-500.0,0.00049863,120]
[404886698,1770649851119,-835.68329447,0.0004987,120]
[404886699,1770649851129,-500.0,0.0004989,25]
[404886700,1770649851140,-500.0,0.00049972,25]
[404886701,1770649851149,-200.0,0.00049988,120]
[404886702,1770649851159,-300.0,0.00049999,25]
[404886703,1770649851169,-72035.69724383,0.0005,2]
[404886704,1770649851178,-153.0,0.0005,120]
[404886705,1770649851187,-1000.0,0.0005,15]
[404886706,1770649851197,-300.0,0.0005,120]
[404886707,1770649851207,-267.99710147,0.0005,90]
[404886708,1770649851216,-167.66282298,0.0005,120]
[404886709,1770649851225,-294.14583308,0.0005,120]
[404886710,1770649851234,-361.60169492,0.0005,120]
[404886711,1770649851243,-717.30065964,0.0005,120]
[404886712,1770649851252,-980.90045328,0.0005,120]
[404886713,1770649851262,-183.42622994,0.0005,120]
[404886714,1770649851271,-495.84004264,0.0005,30]
[404886715,1770649851280,-508.85717207,0.0005,120]
[404886716,1770649851290,-500.0,0.0005,30]
[404886717,1770649851299,-1308.83084527,0.0005,120]
[404886718,1770649851309,-172.0,0.0005,30]
[404886719,1770649851319,-500.0,0.00050054,25]
[404886720,1770649851329,-500.0,0.00050054,25]
[404886721,1770649851338,-500.0,0.00050054,25]
[404886722,1770649851349,-500.0,0.00050054,25]
[404886723,1770649851364,-500.0,0.00050054,25]
[404886724,1770649851374,-500.0,0.00050054,25]
[404886725,1770649851384,-500.0,0.00050054,25]
[404886726,1770649851394,-500.0,0.00050054,25]
[404886727,1770649851403,-500.0,0.00050054,25]
[404886728,1770649851414,-395.0,0.00050054,25]
[404886729,1770649851424,-500.0,0.00050054,25]
[404886730,1770649851433,-500.0,0.00050054,25]
[404886731,1770649851442,-500.0,0.00050054,25]
[404886732,1770649851451,-500.0,0.00050054,25]
[404886733,1770649851460,-500.0,0.00050054,25]
[404886734,1770649851470,-500.0,0.00050054,25]
[404886735,1770649851479,-500.0,0.00050054,25]
[404886736,1770649851489,-400.0,0.00050054,25]
[404886737,1770649851499,-2469.78,0.000501,14]
[404886738,1770649851509,-200.0,0.00050109,25]
[404886739,1770649851518,-151.0,0.00050136,30]
[404886740,1770649851528,-518.36272501,0.00050136,120]
[404886741,1770649851538,-500.0,0.00050136,120]
[404886742,1770649851547,-500.0,0.00050136,120]
[404886743,1770649851649,-797.77,0.00050136,120]
[404886744,1770649851659,-500.0,0.00050136,120]
[404886745,1770649851669,-500.0,0.00050136,120]
[404886746,1770649851679,-500.0,0.00050136,2]
[404886747,1770649851689,-500.0,0.00050136,120]
[404886748,1770649851701,-499.43337675,0.00050136,120]
[404886749,1770649851710,-500.0,0.00050136,120]
[404886750,1770649851719,-500.0,0.00050136,120]
[404886751,1770649851728,-500.0,0.00050136,14]
[404886752,1770649851738,-2499.97,0.00050136,2]
[404886753,1770649851747,-546.05,0.00050136,120]
[404886754,1770649851757,-500.0,0.00050136,120]
[404886755,1770649851767,-565.79,0.00050136,30]
[404886756,1770649851777,-500.0,0.00050136,120]
[404886757,1770649851786,-500.0,0.00050136,120]
[404886758,1770649851796,-802.85,0.00050136,120]
[404886759,1770649851805,-500.0,0.00050136,120]
[404886760,1770649851815,-500.0,0.00050136,120]
[404886761,1770649851825,-500.0,0.00050136,120]
[404886762,1770649851835,-859.94,0.00050136,120]
[404886763,1770649851844,-500.0,0.00050136,7]
[404886764,1770649851854,-608.42409785,0.00050136,120]
[404886765,1770649851863,-414.55460402,0.00050136,120]
[404886766,1770649851873,-500.0,0.00050136,120]
[404886767,1770649851884,-500.0,0.00050136,8]
[404886768,1770649851894,-880.16,0.00050136,120]
[404886769,1770649851903,-617.89308152,0.00050136,120]
[404886770,1770649851913,-500.0,0.00050136,120]
[404886771,1770649851922,-4901.28,0.00050136,2]
[404886772,1770649851932,-500.0,0.00050136,120]
[404886773,1770649851942,-500.0,0.00050136,120]
[404886774,1770649851951,-500.0,0.00050136,120]
[404886775,1770649851961,-10108.66,0.00050136,30]
[404886776,1770649851970,-643.68370345,0.00050136,120]
[404886777,1770649851980,-500.0,0.00050136,120]
[404886778,1770649851990,-500.0,0.00050136,120]
[404886779,1770649851999,-500.0,0.00050136,120]
[404886780,1770649852008,-500.0,0.00050136,120]
[404886781,1770649852017,-500.0,0.00050136,120]
[404886782,1770649852027,-527.36,0.00050136,120]
[404886783,1770649852036,-500.0,0.00050136,120]
[404886784,1770649852045,-500.0,0.00050136,120]
[404886785,1770649852055,-500.0,0.00050136,120]
[404886786,1770649852064,-500.0,0.00050136,120]
[404886787,1770649852075,-356.64887982,0.00050136,120]
[404886788,1770649852085,-500.0,0.00050136,120]
[404886789,1770649852095,-500.0,0.00050136,120]
[404886790,1770649852104,-500.0,0.00050136,120]
[404886791,1770649852114,-227.22608532,0.00050136,120]
[404886792,1770649852125,-250.57137095,0.00050136,120]
[404886793,1770649852135,-500.0,0.00050136,120]
[404886794,1770649852144,-500.0,0.00050136,120]
[404886795,1770649852155,-500.0,0.00050136,30]
[404886796,1770649852164,-710.88,0.00050136,30]
[404886797,1770649852174,-500.0,0.00050136,120]
[404886798,1770649852184,-500.0,0.00050136,120]
[404886799,1770649852194,-500.0,0.00050136,120]
[404886800,1770649852204,-500.0,0.00050136,120]
[404886801,1770649852213,-500.0,0.00050136,120]
[404886802,1770649852223,-500.0,0.00050136,120]
[404886803,1770649852233,-500.0,0.00050136,53]
[404886804,1770649852242,-500.0,0.00050136,120]
[404886805,1770649852252,-500.0,0.00050136,120]
[404886806,1770649852261,-500.0,0.00050136,120]
[404886807,1770649852271,-594.8,0.00050136,120]
[404886808,1770649852282,-500.0,0.00050136,120]
[404886809,1770649852291,-500.0,0.00050136,120]
[404886810,1770649852301,-500.0,0.00050136,2]
[404886811,1770649852311,-67827.48,0.00050136,20]
[404886812,1770649852320,-500.0,0.00050136,120]
[404886813,1770649852330,-609.92,0.00050136,120]
[404886814,1770649852339,-500.0,0.00050136,2]
[404886815,1770649852349,-500.0,0.00050136,120]
[404886816,1770649852359,-300.0,0.00050136,25]
[404886817,1770649852368,-838.72,0.000502,14]
[404886818,1770649852378,-300.0,0.00050273,25]
[404886819,1770649852388,-500.0,0.00050273,25]
[404886820,1770649852397,-500.0,0.00050273,25]
[404886821,1770649852407,-500.0,0.00050273,25]
[404886822,1770649852416,-500.0,0.00050273,25]
[404886823,1770649852426,-637.0,0.00050273,25]
[404886824,1770649852435,-500.0,0.00050273,25]
[404886825,1770649852444,-500.0,0.00050273,25]
[404886826,1770649852453,-500.0,0.00050273,25]
[404886827,1770649852463,-500.0,0.00050273,25]
[404886828,1770649852472,-340.0,0.00050273,25]
[404886829,1770649852481,-200.0,0.00050301,25]
[404886830,1770649852491,-359.0,0.00050328,25]
[404886831,1770649852500,-430.0,0.00050328,25]
[404886832,1770649852510,-158.21710176,0.0005041,120]
[404886833,1770649852519,-522.20037033,0.0005041,120]
[404886834,1770649852528,-797.77,0.0005041,120]
[404886835,1770649852538,-500.0,0.0005041,120]
[404886836,1770649852547,-639.71379163,0.0005041,120]
[404886837,1770649852556,-500.0,0.0005041,2]
[404886838,1770649852567,-500.0,0.0005041,120]
[404886839,1770649852576,-500.0,0.0005041,120]
[404886840,1770649852585,-500.0,0.0005041,120]
[404886841,1770649852594,-185.27052393,0.0005041,14]
[404886842,1770649852603,-2499.97,0.0005041,2]
[404886843,1770649852612,-546.05,0.0005041,120]
[404886844,1770649852621,-500.0,0.0005041,120]
[404886845,1770649852638,-500.0,0.0005041,120]
[404886846,1770649852647,-485.58377681,0.0005041,120]
[404886847,1770649852657,-802.85,0.0005041,120]
[404886848,1770649852667,-500.0,0.0005041,120]
[404886849,1770649852677,-604.66226222,0.0005041,120]
[404886850,1770649852686,-500.0,0.0005041,120]
[404886851,1770649852695,-859.94,0.0005041,120]
[404886852,1770649852708,-500.0,0.0005041,7]
[404886853,1770649852718,-500.0,0.0005041,120]
[404886854,1770649852727,-500.0,0.0005041,8]
[404886855,1770649852737,-880.16,0.0005041,120]
[404886856,1770649852747,-500.0,0.0005041,120]
[404886857,1770649852756,-4901.28,0.0005041,2]
[404886858,1770649852766,-500.0,0.0005041,120]
[404886859,1770649852775,-500.0,0.0005041,120]
[404886860,1770649852785,-500.0,0.0005041,120]
[404886861,1770649852794,-10108.66,0.0005041,30]
[404886862,1770649852806,-164.87421301,0.0005041,120]
[404886863,1770649852815,-500.0,0.0005041,120]
[404886864,1770649852824,-500.0,0.0005041,120]
[404886865,1770649852834,-517.52310339,0.0005041,120]
[404886866,1770649852843,-500.0,0.0005041,120]
[404886867,1770649852854,-527.36,0.0005041,120]
[404886868,1770649852863,-500.0,0.0005041,120]
[404886869,1770649852872,-500.0,0.0005041,120]
[404886870,1770649852881,-500.0,0.0005041,120]
[404886871,1770649852896,-500.0,0.0005041,120]
[404886872,1770649852905,-515.36113306,0.0005041,120]
[404886873,1770649852915,-503.92272055,0.0005041,120]
[404886874,1770649852924,-500.0,0.0005041,120]
[404886875,1770649852934,-261.33718865,0.0005041,120]
[404886876,1770649852943,-500.0,0.0005041,120]
[404886877,1770649852952,-500.0,0.0005041,30]
[404886878,1770649852962,-710.88,0.0005041,30]
[404886879,1770649852972,-500.0,0.0005041,120]
[404886880,1770649852981,-500.0,0.0005041,120]
[404886881,1770649852991,-500.0,0.0005041,120]
[404886882,1770649853000,-500.0,0.0005041,120]
[404886883,1770649853009,-500.0,0.0005041,120]
[404886884,1770649853019,-500.0,0.0005041,120]
[404886885,1770649853029,-500.0,0.0005041,53]
[404886886,1770649853038,-500.0,0.0005041,120]
[404886887,1770649853048,-500.0,0.0005041,120]
[404886888,1770649853058,-500.0,0.0005041,120]
[404886889,1770649853068,-594.8,0.0005041,120]
[404886890,1770649853078,-500.0,0.0005041,120]
[404886891,1770649853087,-500.0,0.0005041,120]
[404886892,1770649853098,-500.0,0.0005041,2]
[404886893,1770649853107,-67827.48,0.0005041,20]
[404886894,1770649853117,-500.0,0.0005041,120]
[404886895,1770649853127,-609.92,0.0005041,120]
[404886896,1770649853138,-422.96955612,0.0005041,2]
[404886897,1770649853149,-500.0,0.0005041,120]
[404886898,1770649853159,-500.0,0.00050411,25]
[404886899,1770649853170,-500.0,0.00050411,25]
[404886900,1770649853179,-200.0,0.00050443,120]
[404886901,1770649853189,-200.0,0.00050492,25]
[404886902,1770649853199,-500.0,0.00050492,25]
[404886903,1770649853209,-500.0,0.00050492,25]
[404886904,1770649853218,-500.0,0.00050492,25]
[404886905,1770649853228,-258.0,0.00050492,25]
[404886906,1770649853238,-500.0,0.00050492,25]
[404886907,1770649853248,-500.0,0.00050492,25]
[404886908,1770649853258,-560.0,0.00050492,25]
[404886909,1770649853268,-215.0,0.00050547,25]
[404886910,1770649853278,-258.0,0.00050547,25]
[404886911,1770649853288,-1834.77,0.0005058,30]
[404886912,1770649853297,-10000.0,0.00050649,120]
[404886913,1770649853307,-797.77,0.00050684,120]
[404886914,1770649853317,-500.0,0.00050684,120]
[404886915,1770649853327,-500.0,0.00050684,2]
[404886916,1770649853336,-500.0,0.00050684,120]